[Event "Titled Tuesday Blitz August 3 2021"]
[White "Kovacsy, Barnabas"]
[Black "Mikhailovsky, Vladimir"]
[WhiteFideId "769290"]
[BlackFideId "34105414"]
[WhiteElo "1938"]
[BlackElo "2315"]
[Result "0-1"]
[Round "01"]
[TimeControl "180+1"]
[Date "2021.08.03"]
[WhiteClock "0:00:19"]
[BlackClock "0:00:10"]

1. e4 {[%clk 0:03:00]}  Nf6 {[%clk 0:02:52]} 2. e5 {[%clk 0:03:00]}  Nd5 {[%clk 0:02:51]} 3. d4 {[%clk 0:03:00]}  d6 {[%clk 0:02:48]} 4. Nf3 {[%clk 0:03:00]}  dxe5 {[%clk 0:02:48]} 5. Nxe5 {[%clk 0:03:01]}  c6 {[%clk 0:02:48]} 6. Bd3 {[%clk 0:02:54]}  Nd7 {[%clk 0:02:48]} 7. Nxd7 {[%clk 0:02:52]}  Bxd7 {[%clk 0:02:42]} 8. O-O {[%clk 0:02:52]}  g6 {[%clk 0:02:36]} 9. c3 {[%clk 0:02:50]}  Bg7 {[%clk 0:02:36]} 10. Re1 {[%clk 0:02:50]}  O-O {[%clk 0:02:37]} 11. Bg5 {[%clk 0:02:50]}  Re8 {[%clk 0:02:37]} 12. Nd2 {[%clk 0:02:49]}  Qc7 {[%clk 0:02:35]} 13. Ne4 {[%clk 0:02:45]}  Bf5 {[%clk 0:02:21]} 14. Qd2 {[%clk 0:02:42]}  e5 {[%clk 0:02:05]} 15. dxe5 {[%clk 0:02:18]}  Bxe5 {[%clk 0:02:04]} 16. Ng3 {[%clk 0:02:12]}  Bxd3 {[%clk 0:02:00]} 17. Qxd3 {[%clk 0:02:12]}  Bf4 {[%clk 0:01:44]} 18. Bxf4 {[%clk 0:02:02]}  Nxf4 {[%clk 0:01:45]} 19. Qf3 {[%clk 0:01:52]}  Rad8 {[%clk 0:01:41]} 20. Ne4 {[%clk 0:01:51]}  Qe5 {[%clk 0:01:26]} 21. Kf1 {[%clk 0:01:42]}  Re6 {[%clk 0:00:40]} 22. Ng3 {[%clk 0:01:28]}  Qb5+ {[%clk 0:00:30]} 23. Kg1 {[%clk 0:01:20]}  Rxe1+ {[%clk 0:00:22]} 24. Rxe1 {[%clk 0:01:21]}  Ne6 {[%clk 0:00:16]} 25. Qf6 {[%clk 0:01:14]}  Re8 {[%clk 0:00:11]} 26. h4 {[%clk 0:00:56]}  Qxb2 {[%clk 0:00:10]} 27. h5 {[%clk 0:00:54]}  Qd2 {[%clk 0:00:10]} 28. Re2 {[%clk 0:00:35]}  Qd8 {[%clk 0:00:07]} 29. Qe5 {[%clk 0:00:33]}  Ng7 {[%clk 0:00:06]} 30. Qd4 {[%clk 0:00:28]}  Qxd4 {[%clk 0:00:05]} 31. Rxe8+ {[%clk 0:00:29]}  Nxe8 {[%clk 0:00:06]} 32. cxd4 {[%clk 0:00:29]}  Kf8 {[%clk 0:00:06]} 33. hxg6 {[%clk 0:00:29]}  hxg6 {[%clk 0:00:06]} 34. Kf1 {[%clk 0:00:29]}  Ke7 {[%clk 0:00:07]} 35. Ke2 {[%clk 0:00:30]}  Ke6 {[%clk 0:00:07]} 36. Kd3 {[%clk 0:00:30]}  Nd6 {[%clk 0:00:06]} 37. Ne2 {[%clk 0:00:30]}  b6 {[%clk 0:00:05]} 38. g3 {[%clk 0:00:29]}  g5 {[%clk 0:00:05]} 39. Nc3 {[%clk 0:00:27]}  f5 {[%clk 0:00:05]} 40. f3 {[%clk 0:00:26]}  b5 {[%clk 0:00:05]} 41. Ne2 {[%clk 0:00:24]}  a5 {[%clk 0:00:04]} 42. Nc3 {[%clk 0:00:24]}  b4 {[%clk 0:00:04]} 43. Na4 {[%clk 0:00:24]}  Kd5 {[%clk 0:00:05]} 44. Nb6+ {[%clk 0:00:24]}  Ke6 {[%clk 0:00:04]} 45. Na4 {[%clk 0:00:25]}  Nb5 {[%clk 0:00:04]} 46. Nc5+ {[%clk 0:00:23]}  Kd5 {[%clk 0:00:04]} 47. Nb7 {[%clk 0:00:23]}  a4 {[%clk 0:00:04]} 48. Nc5 {[%clk 0:00:23]}  b3 {[%clk 0:00:02]} 49. axb3 {[%clk 0:00:23]}  a3 {[%clk 0:00:03]} 50. b4 {[%clk 0:00:22]}  Nxd4 {[%clk 0:00:03]} 51. Kc3 {[%clk 0:00:17]}  Nxf3 {[%clk 0:00:03]} 52. Nd7 {[%clk 0:00:15]}  Ne5 {[%clk 0:00:02]} 53. Nf6+ {[%clk 0:00:15]}  Ke6 {[%clk 0:00:03]} 54. Ne8 {[%clk 0:00:16]}  f4 {[%clk 0:00:03]} 55. Ng7+ {[%clk 0:00:16]}  Kf6 {[%clk 0:00:02]} 56. Nh5+ {[%clk 0:00:16]}  Kf5 {[%clk 0:00:03]} 57. Ng7+ {[%clk 0:00:17]}  Kg4 {[%clk 0:00:03]} 58. Ne6 {[%clk 0:00:17]}  Nf3 {[%clk 0:00:02]} 59. gxf4 {[%clk 0:00:17]}  gxf4 {[%clk 0:00:02]} 60. Kb3 {[%clk 0:00:17]}  Ne5 {[%clk 0:00:02]} 61. Nxf4 {[%clk 0:00:15]}  Kxf4 {[%clk 0:00:03]} 62. Kxa3 {[%clk 0:00:16]}  Nc4+ {[%clk 0:00:02]} 63. Kb3 {[%clk 0:00:16]}  Nd6 {[%clk 0:00:03]} 64. Ka4 {[%clk 0:00:16]}  Ke5 {[%clk 0:00:04]} 65. Ka5 {[%clk 0:00:17]}  Kd5 {[%clk 0:00:04]} 66. Kb6 {[%clk 0:00:17]}  Nc4+ {[%clk 0:00:04]} 67. Kc7 {[%clk 0:00:18]}  Na3 {[%clk 0:00:04]} 68. Kb6 {[%clk 0:00:18]}  Nb5 {[%clk 0:00:04]} 69. Kb7 {[%clk 0:00:18]}  Nd4 {[%clk 0:00:05]} 70. Kb6 {[%clk 0:00:19]}  Kc4 {[%clk 0:00:05]} 71. Ka5 {[%clk 0:00:19]}  Ne6 {[%clk 0:00:05]} 72. Kb6 {[%clk 0:00:19]}  Nd8 {[%clk 0:00:05]} 73. Ka5 {[%clk 0:00:18]}  Kd5 {[%clk 0:00:05]} 74. Kb6 {[%clk 0:00:18]}  Ne6 {[%clk 0:00:05]} 75. b5 {[%clk 0:00:18]}  c5 {[%clk 0:00:06]} 76. Ka5 {[%clk 0:00:19]}  c4 {[%clk 0:00:06]} 77. b6 {[%clk 0:00:20]}  Nd8 {[%clk 0:00:05]} 78. Kb4 {[%clk 0:00:20]}  Kd4 {[%clk 0:00:05]} 79. Ka3 {[%clk 0:00:19]}  c3 {[%clk 0:00:06]} 80. Ka4 {[%clk 0:00:16]}  c2 {[%clk 0:00:05]} 81. b7 {[%clk 0:00:16]}  Nxb7 {[%clk 0:00:06]} 82. Kb5 {[%clk 0:00:16]}  c1=Q {[%clk 0:00:07]} 83. Ka4 {[%clk 0:00:17]}  Qb1 {[%clk 0:00:06]} 84. Ka3 {[%clk 0:00:17]}  Kc3 {[%clk 0:00:06]} 85. Ka4 {[%clk 0:00:18]}  Nc5+ {[%clk 0:00:06]} 86. Ka5 {[%clk 0:00:17]}  Nd3 {[%clk 0:00:07]} 87. Ka6 {[%clk 0:00:18]}  Qb4 {[%clk 0:00:08]} 88. Ka7 {[%clk 0:00:18]}  Qb5 {[%clk 0:00:09]} 89. Ka8 {[%clk 0:00:18]}  Nc5 {[%clk 0:00:10]} 90. Ka7 {[%clk 0:00:19]}  Qb7# {[%clk 0:00:10]} 0-1


[Site "https://www.chess.com"]

[Event "Titled Tuesday Blitz August 3 2021"]
[White "Kubatko, Ivan"]
[Black "Wei, Yi"]
[WhiteFideId "24111473"]
[BlackFideId "8603405"]
[WhiteElo "2285"]
[BlackElo "2686"]
[Result "1/2-1/2"]
[Round "01"]
[TimeControl "180+1"]
[Date "2021.08.03"]
[WhiteClock "0:00:03"]
[BlackClock "0:00:03"]

1. e4 {[%clk 0:02:58]}  c5 {[%clk 0:02:58]} 2. c3 {[%clk 0:02:56]}  Nf6 {[%clk 0:02:58]} 3. e5 {[%clk 0:02:57]}  Nd5 {[%clk 0:02:58]} 4. d4 {[%clk 0:02:54]}  cxd4 {[%clk 0:02:57]} 5. cxd4 {[%clk 0:02:55]}  d6 {[%clk 0:02:57]} 6. Nf3 {[%clk 0:02:54]}  Nc6 {[%clk 0:02:57]} 7. Bc4 {[%clk 0:02:54]}  Nb6 {[%clk 0:02:54]} 8. Bb5 {[%clk 0:02:54]}  dxe5 {[%clk 0:02:54]} 9. Nxe5 {[%clk 0:02:54]}  Bd7 {[%clk 0:02:53]} 10. Nxd7 {[%clk 0:02:54]}  Qxd7 {[%clk 0:02:53]} 11. Nc3 {[%clk 0:02:54]}  e6 {[%clk 0:02:52]} 12. Qg4 {[%clk 0:02:34]}  h5 {[%clk 0:02:42]} 13. Qe4 {[%clk 0:02:31]}  Rd8 {[%clk 0:02:06]} 14. Be3 {[%clk 0:02:22]}  Nd5 {[%clk 0:01:55]} 15. O-O {[%clk 0:02:17]}  a6 {[%clk 0:01:43]} 16. Ba4 {[%clk 0:02:11]}  b5 {[%clk 0:01:36]} 17. Bb3 {[%clk 0:02:10]}  Nf6 {[%clk 0:01:36]} 18. Qf3 {[%clk 0:02:06]}  Bd6 {[%clk 0:01:27]} 19. Rad1 {[%clk 0:01:52]}  Ng4 {[%clk 0:01:21]} 20. h3 {[%clk 0:01:49]}  Nh2 {[%clk 0:01:20]} 21. Qe4 {[%clk 0:01:42]}  Nxf1 {[%clk 0:01:20]} 22. Kxf1 {[%clk 0:01:42]}  Ne7 {[%clk 0:01:16]} 23. d5 {[%clk 0:01:37]}  e5 {[%clk 0:01:16]} 24. Bg5 {[%clk 0:01:25]}  f6 {[%clk 0:01:16]} 25. Be3 {[%clk 0:01:21]}  Qf5 {[%clk 0:01:04]} 26. Ke2 {[%clk 0:01:03]}  Kf7 {[%clk 0:01:03]} 27. g4 {[%clk 0:00:55]}  hxg4 {[%clk 0:01:01]} 28. hxg4 {[%clk 0:00:55]}  Qxe4 {[%clk 0:00:58]} 29. Nxe4 {[%clk 0:00:56]}  Nc8 {[%clk 0:00:26]} 30. Rc1 {[%clk 0:00:48]}  Rd7 {[%clk 0:00:26]} 31. Rc6 {[%clk 0:00:47]}  a5 {[%clk 0:00:25]} 32. Bc5 {[%clk 0:00:24]}  Bxc5 {[%clk 0:00:17]} 33. Rxc5 {[%clk 0:00:24]}  Nd6 {[%clk 0:00:14]} 34. Nxd6+ {[%clk 0:00:19]}  Rxd6 {[%clk 0:00:15]} 35. Rxb5 {[%clk 0:00:20]}  Ra8 {[%clk 0:00:14]} 36. Kd3 {[%clk 0:00:14]}  a4 {[%clk 0:00:13]} 37. Bc4 {[%clk 0:00:14]}  Ke7 {[%clk 0:00:13]} 38. Rb7+ {[%clk 0:00:14]}  Rd7 {[%clk 0:00:13]} 39. Rb6 {[%clk 0:00:14]}  Rc8 {[%clk 0:00:12]} 40. Re6+ {[%clk 0:00:10]}  Kd8 {[%clk 0:00:11]} 41. Ra6 {[%clk 0:00:09]}  Rb8 {[%clk 0:00:09]} 42. b3 {[%clk 0:00:06]}  axb3 {[%clk 0:00:09]} 43. axb3 {[%clk 0:00:07]}  Kc7 {[%clk 0:00:08]} 44. Ra7+ {[%clk 0:00:04]}  Rb7 {[%clk 0:00:07]} 45. Ra8 {[%clk 0:00:04]}  Rd8 {[%clk 0:00:07]} 46. Ra6 {[%clk 0:00:04]}  Rd6 {[%clk 0:00:07]} 47. Ra8 {[%clk 0:00:04]}  g6 {[%clk 0:00:07]} 48. Rg8 {[%clk 0:00:03]}  f5 {[%clk 0:00:07]} 49. g5 {[%clk 0:00:03]}  Kb6 {[%clk 0:00:04]} 50. Rf8 {[%clk 0:00:03]}  Kc5 {[%clk 0:00:03]} 51. Rc8+ {[%clk 0:00:03]}  Kb4 {[%clk 0:00:03]} 52. Re8 {[%clk 0:00:03]}  e4+ {[%clk 0:00:02]} 53. Kd4 {[%clk 0:00:03]}  Rc7 {[%clk 0:00:02]} 54. Re6 {[%clk 0:00:03]}  Rxe6 {[%clk 0:00:02]} 55. dxe6 {[%clk 0:00:04]}  Ra7 {[%clk 0:00:02]} 56. Ke5 {[%clk 0:00:04]}  Kc5 {[%clk 0:00:02]} 57. Kf6 {[%clk 0:00:04]}  Kd6 {[%clk 0:00:03]} 58. Kxg6 {[%clk 0:00:04]}  Ke5 {[%clk 0:00:03]} 59. Kh6 {[%clk 0:00:02]}  f4 {[%clk 0:00:03]} 60. g6 {[%clk 0:00:03]}  Kf6 {[%clk 0:00:03]} 61. Kh5 {[%clk 0:00:01]}  Kf5 {[%clk 0:00:03]} 62. Kh6 {[%clk 0:00:01]}  Kf6 {[%clk 0:00:03]} 63. Kh5 {[%clk 0:00:01]}  e3 {[%clk 0:00:03]} 64. fxe3 {[%clk 0:00:01]}  fxe3 {[%clk 0:00:03]} 65. Kg4 {[%clk 0:00:02]}  Kxg6 {[%clk 0:00:02]} 66. Kf3 {[%clk 0:00:01]}  Kf6 {[%clk 0:00:02]} 67. Kxe3 {[%clk 0:00:01]}  Ke5 {[%clk 0:00:03]} 68. Kd3 {[%clk 0:00:02]}  Rc7 {[%clk 0:00:03]} 69. Kc3 {[%clk 0:00:02]}  Kd6 {[%clk 0:00:03]} 70. Kd4 {[%clk 0:00:02]}  Rh7 {[%clk 0:00:03]} 71. Ke4 {[%clk 0:00:02]}  Rh5 {[%clk 0:00:03]} 72. Kf4 {[%clk 0:00:02]}  Re5 {[%clk 0:00:02]} 73. Kf3 {[%clk 0:00:02]}  Rf5+ {[%clk 0:00:02]} 74. Ke4 {[%clk 0:00:02]}  Re5+ {[%clk 0:00:02]} 75. Kd4 {[%clk 0:00:03]}  Rh5 {[%clk 0:00:02]} 76. Ke4 {[%clk 0:00:03]}  Re5+ {[%clk 0:00:02]} 77. Kf4 {[%clk 0:00:03]}  Rh5 {[%clk 0:00:02]} 78. Kg4 {[%clk 0:00:04]}  Re5 {[%clk 0:00:02]} 79. Kf4 {[%clk 0:00:04]}  Rh5 {[%clk 0:00:03]} 80. Kg4 {[%clk 0:00:03]}  Re5 {[%clk 0:00:03]} 81. Kf4 {[%clk 0:00:03]} 1/2-1/2


[Site "https://www.chess.com"]

[Event "Titled Tuesday Blitz August 3 2021"]
[White "Lammens, Tim"]
[Black "Andreikin, Dmitry"]
[WhiteFideId "1008803"]
[BlackFideId "4158814"]
[WhiteElo "2393"]
[BlackElo "2782"]
[Result "0-1"]
[Round "01"]
[TimeControl "180+1"]
[Date "2021.08.03"]
[WhiteClock "0:00:18"]
[BlackClock "0:02:23"]

1. e4 {[%clk 0:03:00]}  c5 {[%clk 0:02:58]} 2. Nf3 {[%clk 0:03:00]}  Nc6 {[%clk 0:02:57]} 3. d4 {[%clk 0:03:01]}  cxd4 {[%clk 0:02:57]} 4. Nxd4 {[%clk 0:03:01]}  e6 {[%clk 0:02:57]} 5. Nc3 {[%clk 0:03:00]}  a6 {[%clk 0:02:56]} 6. Nxc6 {[%clk 0:02:55]}  bxc6 {[%clk 0:02:57]} 7. Qf3 {[%clk 0:02:53]}  d5 {[%clk 0:02:56]} 8. Bd3 {[%clk 0:02:50]}  Nf6 {[%clk 0:02:54]} 9. Qg3 {[%clk 0:02:48]}  h5 {[%clk 0:02:49]} 10. Bg5 {[%clk 0:02:46]}  h4 {[%clk 0:02:46]} 11. Qf3 {[%clk 0:02:09]}  Be7 {[%clk 0:02:45]} 12. O-O-O {[%clk 0:01:54]}  Rb8 {[%clk 0:02:39]} 13. Rhe1 {[%clk 0:01:36]}  Qa5 {[%clk 0:02:29]} 14. Bxf6 {[%clk 0:00:18]}  Bxf6 {[%clk 0:02:25]} 15. e5 {[%clk 0:00:18]}  Bg5+ {[%clk 0:02:23]} 0-1


[Site "https://www.chess.com"]

[Event "Titled Tuesday Blitz August 3 2021"]
[White "Le, Tuan Minh"]
[Black "Zhuravlev, Alexey"]
[WhiteFideId "12401153"]
[BlackFideId "4164199"]
[WhiteElo "2450"]
[BlackElo "2461"]
[Result "1-0"]
[Round "01"]
[TimeControl "180+1"]
[Date "2021.08.03"]
[WhiteClock "0:00:20"]
[BlackClock "0:00:07"]

1. d4 {[%clk 0:02:58]}  Nf6 {[%clk 0:02:58]} 2. Nf3 {[%clk 0:02:58]}  g6 {[%clk 0:02:55]} 3. Bg5 {[%clk 0:02:57]}  Bg7 {[%clk 0:02:55]} 4. Nbd2 {[%clk 0:02:57]}  d5 {[%clk 0:02:52]} 5. c3 {[%clk 0:02:57]}  O-O {[%clk 0:02:51]} 6. e3 {[%clk 0:02:58]}  b6 {[%clk 0:02:51]} 7. Bd3 {[%clk 0:02:58]}  c5 {[%clk 0:02:52]} 8. O-O {[%clk 0:02:58]}  Nc6 {[%clk 0:02:51]} 9. h3 {[%clk 0:02:51]}  Bb7 {[%clk 0:02:50]} 10. Qe2 {[%clk 0:02:51]}  Re8 {[%clk 0:02:47]} 11. Rad1 {[%clk 0:02:49]}  Qc8 {[%clk 0:02:17]} 12. Bf4 {[%clk 0:02:42]}  Nd7 {[%clk 0:02:15]} 13. Rfe1 {[%clk 0:02:34]}  e5 {[%clk 0:02:15]} 14. dxe5 {[%clk 0:02:35]}  Ndxe5 {[%clk 0:02:15]} 15. Nxe5 {[%clk 0:02:36]}  Nxe5 {[%clk 0:02:15]} 16. Bb5 {[%clk 0:02:36]}  Re7 {[%clk 0:02:00]} 17. Nf1 {[%clk 0:01:33]}  a6 {[%clk 0:01:59]} 18. Ba4 {[%clk 0:01:33]}  Qc7 {[%clk 0:01:27]} 19. Nh2 {[%clk 0:01:25]}  Rd8 {[%clk 0:01:22]} 20. Bb3 {[%clk 0:01:17]}  Kh8 {[%clk 0:01:21]} 21. Bg5 {[%clk 0:01:12]}  f6 {[%clk 0:01:20]} 22. Bf4 {[%clk 0:01:12]}  Qc6 {[%clk 0:01:16]} 23. Nf3 {[%clk 0:01:11]}  Red7 {[%clk 0:01:12]} 24. Bc2 {[%clk 0:01:06]}  d4 {[%clk 0:01:06]} 25. Bxe5 {[%clk 0:01:02]}  fxe5 {[%clk 0:01:03]} 26. exd4 {[%clk 0:01:01]}  exd4 {[%clk 0:00:53]} 27. cxd4 {[%clk 0:01:01]}  cxd4 {[%clk 0:00:52]} 28. Bd3 {[%clk 0:00:55]}  Rf7 {[%clk 0:00:44]} 29. Rc1 {[%clk 0:00:46]}  Qf6 {[%clk 0:00:36]} 30. Nh2 {[%clk 0:00:30]}  h6 {[%clk 0:00:31]} 31. Rc2 {[%clk 0:00:29]}  Qh4 {[%clk 0:00:29]} 32. Qg4 {[%clk 0:00:24]}  Qxg4 {[%clk 0:00:24]} 33. Nxg4 {[%clk 0:00:25]}  Kh7 {[%clk 0:00:18]} 34. Re6 {[%clk 0:00:23]}  Rff8 {[%clk 0:00:10]} 35. Rc7 {[%clk 0:00:20]}  h5 {[%clk 0:00:09]} 36. Rxg6 {[%clk 0:00:19]}  hxg4 {[%clk 0:00:07]} 37. Rgxg7+ {[%clk 0:00:20]} 1-0


[Site "https://www.chess.com"]

[Event "Titled Tuesday Blitz August 3 2021"]
[White "Lintchevski, Daniil"]
[Black "Trakru, Rohun"]
[WhiteFideId "4171055"]
[BlackFideId "2097613"]
[WhiteElo "2505"]
[BlackElo "1746"]
[Result "1/2-1/2"]
[Round "01"]
[TimeControl "180+1"]
[Date "2021.08.03"]
[WhiteClock "0:00:43"]
[BlackClock "0:00:04"]

1. e4 {[%clk 0:03:00]}  c6 {[%clk 0:02:59]} 2. d4 {[%clk 0:03:00]}  d5 {[%clk 0:02:56]} 3. Nd2 {[%clk 0:03:00]}  dxe4 {[%clk 0:02:55]} 4. Nxe4 {[%clk 0:03:01]}  Nf6 {[%clk 0:02:56]} 5. Nxf6+ {[%clk 0:03:01]}  exf6 {[%clk 0:02:56]} 6. Bc4 {[%clk 0:03:01]}  Bd6 {[%clk 0:02:55]} 7. Qe2+ {[%clk 0:03:02]}  Qe7 {[%clk 0:02:56]} 8. Qxe7+ {[%clk 0:03:02]}  Kxe7 {[%clk 0:02:56]} 9. Ne2 {[%clk 0:03:02]}  Be6 {[%clk 0:02:45]} 10. Bd3 {[%clk 0:03:02]}  Nd7 {[%clk 0:02:43]} 11. c4 {[%clk 0:03:02]}  Nf8 {[%clk 0:02:39]} 12. Bf4 {[%clk 0:02:59]}  Ng6 {[%clk 0:02:34]} 13. Bxd6+ {[%clk 0:02:59]}  Kxd6 {[%clk 0:02:35]} 14. O-O-O {[%clk 0:02:57]}  Rad8 {[%clk 0:02:31]} 15. g3 {[%clk 0:02:55]}  Rhe8 {[%clk 0:02:15]} 16. Nc3 {[%clk 0:02:49]}  Bg4 {[%clk 0:02:00]} 17. Rde1 {[%clk 0:02:49]}  Bf3 {[%clk 0:01:57]} 18. Rhg1 {[%clk 0:02:48]}  Kc7 {[%clk 0:01:56]} 19. Rxe8 {[%clk 0:02:47]}  Rxe8 {[%clk 0:01:57]} 20. Kd2 {[%clk 0:02:47]}  Nf8 {[%clk 0:01:49]} 21. g4 {[%clk 0:02:17]}  Ne6 {[%clk 0:01:45]} 22. Rg3 {[%clk 0:02:17]}  Nxd4 {[%clk 0:01:40]} 23. c5 {[%clk 0:02:11]}  Bd5 {[%clk 0:01:33]} 24. g5 {[%clk 0:01:59]}  Nf3+ {[%clk 0:01:31]} 25. Kc2 {[%clk 0:01:58]}  Nxg5 {[%clk 0:01:25]} 26. f4 {[%clk 0:01:53]}  Ne6 {[%clk 0:01:02]} 27. f5 {[%clk 0:01:53]}  Ng5 {[%clk 0:01:03]} 28. h4 {[%clk 0:01:53]}  Ne4 {[%clk 0:01:02]} 29. Rxg7 {[%clk 0:01:52]}  Nxc3 {[%clk 0:01:00]} 30. Kxc3 {[%clk 0:01:53]}  Re1 {[%clk 0:00:58]} 31. Rxh7 {[%clk 0:01:51]}  Rc1+ {[%clk 0:00:55]} 32. Kd4 {[%clk 0:01:50]}  Bxa2 {[%clk 0:00:50]} 33. Be4 {[%clk 0:01:45]}  b6 {[%clk 0:00:48]} 34. cxb6+ {[%clk 0:01:42]}  axb6 {[%clk 0:00:49]} 35. h5 {[%clk 0:01:43]}  Kd6 {[%clk 0:00:44]} 36. h6 {[%clk 0:01:42]}  Bb1 {[%clk 0:00:15]} 37. Bxb1 {[%clk 0:01:30]}  Rxb1 {[%clk 0:00:16]} 38. Rxf7 {[%clk 0:01:30]}  Rxb2 {[%clk 0:00:14]} 39. Rxf6+ {[%clk 0:01:29]}  Ke7 {[%clk 0:00:14]} 40. Rxc6 {[%clk 0:01:29]}  Kf7 {[%clk 0:00:12]} 41. Ke5 {[%clk 0:01:17]}  Re2+ {[%clk 0:00:08]} 42. Kf4 {[%clk 0:01:17]}  b5 {[%clk 0:00:08]} 43. Rc7+ {[%clk 0:01:13]}  Kf6 {[%clk 0:00:07]} 44. Rc6+ {[%clk 0:01:13]}  Kf7 {[%clk 0:00:07]} 45. Rb6 {[%clk 0:01:14]}  Rb2 {[%clk 0:00:06]} 46. Rb8 {[%clk 0:01:11]}  Rh2 {[%clk 0:00:05]} 47. Rb7+ {[%clk 0:01:11]}  Kf6 {[%clk 0:00:04]} 48. Rb6+ {[%clk 0:01:09]}  Kf7 {[%clk 0:00:05]} 49. Kg3 {[%clk 0:01:09]}  Rh1 {[%clk 0:00:05]} 50. Kg4 {[%clk 0:01:09]}  Rg1+ {[%clk 0:00:05]} 51. Kf4 {[%clk 0:01:09]}  Rf1+ {[%clk 0:00:05]} 52. Ke4 {[%clk 0:01:10]}  Re1+ {[%clk 0:00:06]} 53. Kf3 {[%clk 0:01:10]}  Rf1+ {[%clk 0:00:06]} 54. Kg4 {[%clk 0:01:11]}  Rg1+ {[%clk 0:00:07]} 55. Kh3 {[%clk 0:01:11]}  Rh1+ {[%clk 0:00:07]} 56. Kg3 {[%clk 0:01:11]}  Rg1+ {[%clk 0:00:07]} 57. Kf2 {[%clk 0:01:12]}  Rh1 {[%clk 0:00:07]} 58. Ke3 {[%clk 0:01:08]}  Rh4 {[%clk 0:00:06]} 59. Kf3 {[%clk 0:01:06]}  Rh1 {[%clk 0:00:05]} 60. Rxb5 {[%clk 0:00:41]}  Rxh6 {[%clk 0:00:05]} 61. Rb7+ {[%clk 0:00:41]}  Kf8 {[%clk 0:00:03]} 62. Kg4 {[%clk 0:00:41]}  Rc6 {[%clk 0:00:03]} 63. Rd7 {[%clk 0:00:41]}  Rb6 {[%clk 0:00:03]} 64. Kg5 {[%clk 0:00:41]}  Ra6 {[%clk 0:00:03]} 65. Rb7 {[%clk 0:00:41]}  Rc6 {[%clk 0:00:03]} 66. Ra7 {[%clk 0:00:41]}  Rd6 {[%clk 0:00:04]} 67. Ra8+ {[%clk 0:00:38]}  Kf7 {[%clk 0:00:04]} 68. Rh8 {[%clk 0:00:38]}  Rb6 {[%clk 0:00:04]} 69. Rh7+ {[%clk 0:00:38]}  Kf8 {[%clk 0:00:04]} 70. Rc7 {[%clk 0:00:38]}  Ra6 {[%clk 0:00:04]} 71. Kf4 {[%clk 0:00:39]}  Rb6 {[%clk 0:00:05]} 72. Ke5 {[%clk 0:00:39]}  Ra6 {[%clk 0:00:05]} 73. Rb7 {[%clk 0:00:39]}  Rc6 {[%clk 0:00:05]} 74. Ra7 {[%clk 0:00:40]}  Rb6 {[%clk 0:00:06]} 75. Rd7 {[%clk 0:00:38]}  Ra6 {[%clk 0:00:06]} 76. Kf4 {[%clk 0:00:38]}  Rb6 {[%clk 0:00:06]} 77. Kg5 {[%clk 0:00:39]}  Ra6 {[%clk 0:00:07]} 78. Rd5 {[%clk 0:00:39]}  Rb6 {[%clk 0:00:07]} 79. Ra5 {[%clk 0:00:39]}  Rc6 {[%clk 0:00:07]} 80. f6 {[%clk 0:00:37]}  Rc1 {[%clk 0:00:07]} 81. Kg6 {[%clk 0:00:37]}  Rg1+ {[%clk 0:00:07]} 82. Kf5 {[%clk 0:00:37]}  Rf1+ {[%clk 0:00:07]} 83. Ke6 {[%clk 0:00:38]}  Re1+ {[%clk 0:00:08]} 84. Re5 {[%clk 0:00:38]}  Rxe5+ {[%clk 0:00:04]} 85. Kxe5 {[%clk 0:00:39]}  Kf7 {[%clk 0:00:04]} 86. Kf5 {[%clk 0:00:39]}  Kf8 {[%clk 0:00:04]} 87. Kg5 {[%clk 0:00:40]}  Kf7 {[%clk 0:00:02]} 88. Kf5 {[%clk 0:00:40]}  Kf8 {[%clk 0:00:02]} 89. Ke6 {[%clk 0:00:41]}  Ke8 {[%clk 0:00:03]} 90. Ke5 {[%clk 0:00:41]}  Kf8 {[%clk 0:00:02]} 91. Kf5 {[%clk 0:00:42]}  Kf7 {[%clk 0:00:02]} 92. Kg5 {[%clk 0:00:42]}  Kf8 {[%clk 0:00:03]} 93. Kg6 {[%clk 0:00:42]}  Kg8 {[%clk 0:00:03]} 94. f7+ {[%clk 0:00:42]}  Kf8 {[%clk 0:00:04]} 95. Kh7 {[%clk 0:00:43]}  Kxf7 {[%clk 0:00:04]} 1/2-1/2


[Site "https://www.chess.com"]